fUSD/lending_fUSD_20250109
["ID","MTS","AMOUNT","RATE_DAILY","PERIOD"]
[348318438,1736443856591,-4382.44,0.0001089,2]
[348318439,1736443856601,-500.0,0.0001089,2]
[348318440,1736443856610,-500.0,0.0001089,2]
[348318441,1736443856620,-5361.04,0.0001089,2]
[348318442,1736443856629,-500.0,0.0001089,2]
[348318443,1736443856639,-500.0,0.0001089,2]
[348318444,1736443856648,-2902.65,0.0001089,2]
[348318445,1736443856658,-565.44,0.0001089,2]
[348318446,1736443856667,-563.14,0.0001089,2]
[348318447,1736443856677,-2140.08,0.0001089,2]
[348318448,1736443856687,-800.64,0.0001089,2]
[348318449,1736443856696,-500.0,0.0001089,2]
[348318450,1736443856705,-500.0,0.0001089,2]
[348318451,1736443856715,-1935.58,0.0001089,2]
[348318452,1736443856725,-4415.78,0.0001089,2]
[348318453,1736443856735,-1088.97,0.0001089,2]
[348318454,1736443856745,-500.0,0.0001089,2]
[348318455,1736443856754,-500.0,0.0001089,2]
[348318456,1736443856763,-889.5,0.0001089,2]
[348318457,1736443856772,-1882.85,0.0001089,2]
[348318458,1736443856786,-549.99,0.0001089,2]
[348318459,1736443856796,-605.98,0.0001089,2]
[348318460,1736443856806,-500.16,0.0001089,2]
[348318461,1736443856815,-4339.17,0.0001089,2]
[348318462,1736443856825,-500.0,0.0001089,2]
[348318463,1736443856835,-599.86,0.0001089,2]
[348318464,1736443856845,-1246.1,0.0001089,2]
[348318465,1736443856855,-500.0,0.0001089,2]
[348318466,1736443856865,-500.0,0.0001089,2]
[348318467,1736443856875,-1535.05,0.0001089,2]
[348318468,1736443856885,-500.0,0.0001089,2]
[348318469,1736443856895,-635.1,0.0001089,2]
[348318470,1736443856904,-500.0,0.0001089,2]
[348318471,1736443856914,-551.96,0.0001089,2]
[348318472,1736443856923,-3444.79,0.0001089,2]
[348318473,1736443856933,-1978.41,0.0001089,2]
[348318474,1736443856943,-500.0,0.0001089,2]
[348318475,1736443856952,-500.0,0.0001089,2]
[348318476,1736443856961,-500.0,0.0001089,2]
[348318477,1736443856971,-1866.2,0.0001089,2]
[348318478,1736443856980,-500.0,0.0001089,2]
[348318479,1736443856991,-500.0,0.0001089,2]
[348318480,1736443857000,-500.0,0.0001089,2]
[348318481,1736443857010,-522.76,0.0001089,2]
[348318482,1736443857020,-500.0,0.0001089,2]
[348318483,1736443857029,-500.0,0.0001089,2]
[348318484,1736443857039,-1363.26,0.0001089,2]
[348318485,1736443857049,-930.0,0.0001089,2]
[348318486,1736443857059,-500.0,0.0001089,2]
[348318487,1736443857068,-1261.63,0.0001089,2]
[348318488,1736443857077,-1405.84,0.0001089,2]
[348318489,1736443857143,-527.06,0.0001089,2]
[348318490,1736443857153,-500.0,0.0001089,2]
[348318491,1736443857163,-1663.75,0.0001089,2]
[348318492,1736443857173,-504.02,0.00010891,2]
[348318493,1736443857182,-500.0,0.00010891,2]
[348318494,1736443857192,-500.0,0.00010891,2]
[348318495,1736443857202,-500.0,0.00010891,2]
[348318496,1736443857212,-500.0,0.00010891,2]
[348318497,1736443857223,-500.0,0.00010891,2]
[348318498,1736443857233,-500.0,0.00010891,2]
[348318499,1736443857243,-500.0,0.00010891,2]
[348318500,1736443857253,-500.0,0.00010891,2]
[348318501,1736443857263,-500.0,0.00010891,2]
[348318502,1736443857272,-500.0,0.00010891,2]
[348318503,1736443857281,-500.0,0.00010891,2]
[348318504,1736443857291,-500.0,0.00010891,2]
[348318505,1736443857302,-542.96,0.00010891,2]
[348318506,1736443857312,-500.0,0.00010891,2]
[348318507,1736443857321,-500.0,0.00010891,2]
[348318508,1736443857333,-500.0,0.00010891,2]
[348318509,1736443857343,-500.0,0.00010891,2]
[348318510,1736443857353,-500.0,0.00010891,2]
[348318511,1736443857363,-500.0,0.00010891,2]
[348318512,1736443857372,-500.0,0.00010891,2]
[348318513,1736443857382,-500.0,0.00010891,2]
[348318514,1736443857391,-500.0,0.00010891,2]
[348318515,1736443857401,-500.0,0.00010891,2]
[348318516,1736443857411,-500.0,0.00010891,2]
[348318517,1736443857420,-500.0,0.00010891,2]
[348318518,1736443857430,-500.0,0.00010891,2]
[348318519,1736443857439,-500.0,0.00010891,2]
[348318520,1736443857449,-500.0,0.00010891,2]
[348318521,1736443857459,-500.0,0.00010891,2]
[348318522,1736443857468,-500.0,0.00010891,2]
[348318523,1736443857478,-500.0,0.00010891,2]
[348318524,1736443857487,-500.0,0.00010891,2]
[348318525,1736443857497,-500.0,0.00010891,2]
[348318526,1736443857506,-500.0,0.00010891,2]
[348318527,1736443857515,-500.0,0.00010891,2]
[348318528,1736443857525,-500.0,0.00010891,2]
[348318529,1736443857534,-500.0,0.00010891,2]
[348318530,1736443857545,-1462.51,0.00010891,2]
[348318531,1736443857554,-521.67,0.00010891,2]
[348318532,1736443857564,-503.07,0.00010891,2]
[348318533,1736443857573,-661.91,0.00010891,2]
[348318534,1736443857583,-500.0,0.00010891,2]
[348318535,1736443857592,-500.0,0.00010891,2]
[348318536,1736443857601,-500.0,0.00010891,2]
[348318537,1736443857611,-500.0,0.00010891,2]
[348318538,1736443857621,-822.19,0.00010891,2]
[348318539,1736443857631,-500.0,0.00010891,2]
[348318540,1736443857640,-500.0,0.00010891,2]
[348318541,1736443857649,-500.0,0.00010891,2]
[348318542,1736443857659,-500.0,0.00010891,2]
[348318543,1736443857668,-825.41,0.00010891,2]
[348318544,1736443857677,-574.29,0.00010891,2]
[348318545,1736443857686,-500.0,0.00010891,2]
[348318546,1736443857695,-500.0,0.00010891,2]
[348318547,1736443857705,-500.0,0.00010891,2]
[348318548,1736443857715,-1330.43,0.00010891,2]
[348318549,1736443857724,-567.4,0.00010891,2]
[348318550,1736443857733,-1070.83,0.00010891,2]
[348318551,1736443857742,-500.0,0.00010891,2]
[348318552,1736443857751,-1056.15,0.00010891,2]
[348318553,1736443857760,-500.0,0.00010891,2]
[348318554,1736443857770,-528.55,0.00010891,2]
[348318555,1736443857779,-500.0,0.00010891,2]
[348318556,1736443857788,-1685.7,0.00010891,2]
[348318557,1736443857798,-565.52,0.00010891,2]
[348318558,1736443857807,-500.0,0.00010891,2]
[348318559,1736443857817,-1146.53,0.00010891,2]
[348318560,1736443857826,-602.79,0.00010891,2]
[348318561,1736443857835,-844.28,0.00010891,2]
[348318562,1736443857846,-500.0,0.00010891,2]
[348318563,1736443857855,-3048.3,0.00010891,2]
[348318564,1736443857865,-3916.43,0.00010891,2]
[348318565,1736443857874,-2673.05,0.00010891,2]
[348318566,1736443857883,-1201.14,0.00010891,2]
[348318567,1736443857892,-2023.47,0.00010891,2]
[348318568,1736443857901,-1552.42,0.00010891,2]
[348318569,1736443857911,-1498.72,0.00010891,2]
[348318570,1736443857919,-2673.28,0.00010891,2]
[348318571,1736443857928,-650.14,0.00010891,2]
[348318572,1736443857938,-1177.59,0.00010891,2]
[348318573,1736443857947,-5086.94,0.00010891,2]
[348318574,1736443857956,-1609.3,0.00010891,2]
[348318575,1736443857965,-1933.69,0.00010891,2]
[348318576,1736443857975,-845.45,0.00010891,2]
[348318577,1736443857984,-1751.61,0.00010891,2]
[348318578,1736443857994,-2165.88,0.00010891,2]
[348318579,1736443858004,-1286.42,0.00010891,2]
[348318580,1736443858013,-3784.39,0.00010891,2]
[348318581,1736443858022,-500.0,0.00010891,2]
[348318582,1736443858031,-9477.99,0.00010892,2]
[348318583,1736443858041,-500.0,0.00010892,2]
[348318584,1736443858051,-1248.09,0.00010892,2]
[348318585,1736443858060,-707.74,0.00010892,2]
[348318586,1736443858069,-2322.98,0.00010892,2]
[348318587,1736443858079,-500.0,0.00010892,2]
[348318588,1736443858088,-696.04,0.00010892,2]
[348318589,1736443858097,-1021.98,0.00010892,2]
[348318590,1736443858106,-500.0,0.00010892,2]
[348318591,1736443858116,-1500.74,0.00010892,2]
[348318592,1736443858129,-1000.0,0.00010892,2]
[348318593,1736443858140,-1009.96,0.00010892,2]
[348318594,1736443858150,-2152.64,0.00010892,2]
[348318595,1736443858160,-1664.89,0.00010892,2]
[348318596,1736443858173,-154.3898907,0.00010895,2]
[348318597,1736443858183,-900.0,0.000109,2]
[348318598,1736443858192,-5558.0,0.000109,5]
[348318599,1736443858203,-165.74284264,0.000109,2]
[348318600,1736443858212,-150.0,0.00010911,2]
[348318601,1736443858222,-500.0,0.00010918,2]
[348318602,1736443858231,-422.58619535,0.00010921,2]
[348318603,1736443858241,-781460.56578733,0.00010934,2]
[348318604,1736443858250,-328.61391748,0.00010934,2]
[348318605,1736443858259,-500.0,0.00010946,2]
[348318606,1736443858268,-999.0,0.00010958,2]
[348318607,1736443858277,-600.0,0.0001096,2]
[348318608,1736443858287,-5600.0,0.0001096,2]
[348318609,1736443858297,-2100.0,0.0001096,2]
[348318610,1736443858306,-150.0,0.00010966,2]
[348318611,1736443858316,-500.0,0.00010973,2]
[348318612,1736443858325,-500.0,0.00010986,2]
[348318613,1736443858334,-3000.0,0.0001099,2]
[348318614,1736443858344,-666.0,0.00010998,2]
[348318615,1736443858353,-486.0,0.00011,3]
[348318616,1736443858362,-1000.0,0.00011,3]
[348318617,1736443858371,-1000.0,0.00011,3]
[348318618,1736443858380,-550.0,0.00011,2]
[348318619,1736443858390,-500.0,0.00011001,2]
[348318620,1736443858399,-150.0,0.00011002,2]
[348318621,1736443858408,-831.0005992,0.00011028,2]
[348318622,1736443858418,-328.61391748,0.00011038,2]
[348318623,1736443858428,-150.0,0.00011047,2]
[348318624,1736443858437,-1638.54,0.00011053,2]
[348318625,1736443858446,-1973.96,0.00011053,2]
[348318626,1736443858456,-1316.53,0.00011053,2]
[348318627,1736443858465,-3280.66,0.00011053,2]
[348318628,1736443858474,-2313.4,0.00011053,2]
[348318629,1736443858484,-6497.54,0.00011053,2]
[348318630,1736443858495,-3063.68,0.00011053,2]
[348318631,1736443858505,-150.0,0.00011054,2]
[348318632,1736443858514,-1949.40501258,0.00011068,2]
[348318633,1736443858524,-150.0,0.00011089,2]
[348318634,1736443858533,-2657.8175575,0.00011091,2]
[348318635,1736443858544,-150.0,0.00011094,2]
[348318636,1736443858555,-9310.74602324,0.00011099,2]
[348318637,1736443858564,-9310.74602318,0.00011099,2]
[348318638,1736443858574,-9310.74602318,0.00011099,2]
[348318639,1736443858583,-9310.74602318,0.00011099,2]
[348318640,1736443858592,-9310.74602318,0.00011099,2]
[348318641,1736443858602,-9310.74602318,0.00011099,2]
[348318642,1736443858611,-151.0,0.00011099,2]
[348318643,1736443858620,-151.0,0.00011099,2]
[348318644,1736443858630,-151.0,0.00011099,2]
[348318645,1736443858640,-288.04,0.00011099,2]
[348318646,1736443858649,-2000.0,0.00011099,2]
[348318647,1736443858659,-200.0,0.00011099,2]
[348318648,1736443858668,-200.0,0.00011099,2]
[348318649,1736443858678,-200.0,0.00011099,2]
[348318650,1736443858688,-150.0,0.00011105,2]
[348318651,1736443858697,-335.08,0.0001112,2]
[348318652,1736443858707,-328.61391748,0.00011141,2]
[348318653,1736443858717,-150.0,0.00011158,2]
[348318654,1736443858726,-500.0,0.00011162,2]
[348318655,1736443858736,-500.0,0.00011162,2]
[348318656,1736443858745,-530.27293503,0.00011162,2]
[348318657,1736443858755,-523.26084769,0.00011163,2]
[348318658,1736443858765,-500.0,0.00011163,2]
[348318659,1736443858774,-725.76,0.00011163,2]
[348318660,1736443858785,-500.0,0.00011163,2]
[348318661,1736443858795,-500.0,0.00011163,2]
[348318662,1736443858804,-802.65,0.00011163,2]
[348318663,1736443858814,-1098.26,0.00011163,2]
[348318664,1736443858824,-695.15,0.00011163,2]
[348318665,1736443858834,-500.0,0.00011163,2]
[348318666,1736443858844,-788.65,0.00011163,2]
[348318667,1736443858853,-578.26,0.00011163,2]
[348318668,1736443858863,-500.0,0.00011163,2]
[348318669,1736443858872,-500.0,0.00011163,2]
[348318670,1736443858882,-500.0,0.00011163,2]
[348318671,1736443858891,-1044.69,0.00011163,2]
[348318672,1736443858902,-841.24,0.00011163,2]
[348318673,1736443858912,-500.0,0.00011163,2]
[348318674,1736443858921,-500.0,0.00011163,2]
[348318675,1736443858931,-500.0,0.00011163,2]
[348318676,1736443858941,-500.0,0.00011163,2]
[348318677,1736443858952,-1057.25,0.00011163,2]
[348318678,1736443858961,-500.0,0.00011163,2]
[348318679,1736443858971,-983.27,0.00011163,2]
[348318680,1736443858982,-539.58,0.00011163,2]
[348318681,1736443858991,-500.0,0.00011163,2]
[348318682,1736443859001,-520.83,0.00011163,2]
[348318683,1736443859011,-500.0,0.00011163,2]
[348318684,1736443859020,-500.0,0.00011163,2]
[348318685,1736443859031,-500.0,0.00011163,2]
[348318686,1736443859042,-1399.51,0.00011163,2]
[348318687,1736443859052,-500.0,0.00011163,2]
[348318688,1736443859062,-500.0,0.00011163,2]
[348318689,1736443859074,-1229.61,0.00011163,2]
[348318690,1736443859085,-586.10276449,0.00011163,2]
[348318691,1736443859095,-500.0,0.00011163,2]
[348318692,1736443859105,-500.0,0.00011163,2]
[348318693,1736443859115,-694.14,0.00011163,2]
[348318694,1736443859131,-500.0,0.00011163,2]
[348318695,1736443859141,-500.0,0.00011163,2]
[348318696,1736443859150,-500.0,0.00011163,2]
[348318697,1736443859161,-1222.94,0.00011163,2]
[348318698,1736443859170,-500.0,0.00011163,2]
[348318699,1736443859180,-547.62,0.00011163,2]
[348318700,1736443859189,-719.351032,0.00011163,2]
[348318701,1736443859200,-816.43,0.00011163,2]
[348318702,1736443859210,-500.0,0.00011163,2]
[348318703,1736443859220,-500.0,0.00011163,2]
[348318704,1736443859230,-3587.7,0.00011163,2]
[348318705,1736443859240,-500.0,0.00011163,2]
[348318706,1736443859250,-655.0205,0.00011163,2]
[348318707,1736443859260,-945.97,0.00011163,2]
[348318708,1736443859270,-500.0,0.00011163,2]
[348318709,1736443859281,-563.91,0.00011163,2]
[348318710,1736443859291,-912.71,0.00011163,2]
[348318711,1736443859301,-1798.75,0.00011163,2]
[348318712,1736443859312,-500.0,0.00011163,2]
[348318713,1736443859322,-1231.01,0.00011163,2]
[348318714,1736443859331,-500.0,0.00011163,2]
[348318715,1736443859341,-794.44,0.00011163,2]
[348318716,1736443859351,-914.02,0.00011163,2]
[348318717,1736443859361,-500.0,0.00011163,2]
[348318718,1736443859371,-787.68,0.00011163,2]
[348318719,1736443859381,-500.0,0.00011163,2]
[348318720,1736443859391,-1066.87,0.00011163,2]
[348318721,1736443859400,-1039.32,0.00011163,2]
[348318722,1736443859410,-500.0,0.00011163,2]
[348318723,1736443859420,-530.72,0.00011163,2]
[348318724,1736443859430,-500.0,0.00011163,2]
[348318725,1736443859440,-500.0,0.00011163,2]
[348318726,1736443859450,-2238.6,0.00011163,2]
[348318727,1736443859459,-953.94,0.00011163,2]
[348318728,1736443859468,-806.17,0.00011163,2]
[348318729,1736443859478,-500.0,0.00011163,2]
[348318730,1736443859487,-4802.74,0.00011163,2]
[348318731,1736443859495,-587.62,0.00011163,2]
[348318732,1736443859505,-500.0,0.00011163,2]
[348318733,1736443859514,-566.14,0.00011163,2]
[348318734,1736443859523,-4690.29,0.00011163,2]
[348318735,1736443859533,-551.39,0.00011163,2]
[348318736,1736443859544,-500.0,0.00011163,2]
[348318737,1736443859552,-782.87,0.00011163,2]
[348318738,1736443859562,-523.84,0.00011163,2]
[348318739,1736443859571,-3514.12,0.00011163,2]
[348318740,1736443859580,-611.15,0.00011163,2]
[348318741,1736443859589,-966.58,0.00011163,2]
[348318742,1736443859597,-3279.33,0.00011163,2]
[348318743,1736443859606,-709.54,0.00011163,2]
[348318744,1736443859614,-1017.08,0.00011163,2]
[348318745,1736443859622,-884.82,0.00011163,2]
[348318746,1736443859632,-1403.61,0.00011163,2]
[348318747,1736443859640,-998.27,0.00011163,2]
[348318748,1736443859650,-943.95,0.00011163,2]
[348318749,1736443859659,-500.0,0.00011163,2]
[348318750,1736443859668,-1077.27,0.00011163,2]
[348318751,1736443859676,-600.04,0.00011163,2]
[348318752,1736443859685,-727.93,0.00011163,2]
[348318753,1736443859693,-1077.25,0.00011163,2]
[348318754,1736443859702,-500.0,0.00011163,2]
[348318755,1736443859712,-514.77,0.00011163,2]
[348318756,1736443859722,-743.82,0.00011163,2]
[348318757,1736443859732,-1072.8,0.00011163,2]
[348318758,1736443859742,-1207.51,0.00011163,2]
[348318759,1736443859752,-1031.69,0.00011163,2]
[348318760,1736443859762,-500.0,0.00011163,2]
[348318761,1736443859772,-669.21,0.00011163,2]
[348318762,1736443859782,-500.0,0.00011164,2]
[348318763,1736443859792,-500.0,0.00011164,2]
[348318764,1736443859802,-500.0,0.00011164,2]
[348318765,1736443859812,-500.0,0.00011164,2]
[348318766,1736443859822,-500.0,0.00011164,2]
[348318767,1736443859832,-500.0,0.00011164,2]
[348318768,1736443859841,-500.0,0.00011164,2]
[348318769,1736443859851,-500.0,0.00011164,2]
[348318770,1736443859861,-500.0,0.00011164,2]
[348318771,1736443859871,-500.0,0.00011164,2]
[348318772,1736443859880,-500.0,0.00011164,2]
[348318773,1736443859890,-500.0,0.00011164,2]
[348318774,1736443859900,-1022.22,0.00011164,2]
[348318775,1736443859909,-500.0,0.00011164,2]
[348318776,1736443859919,-500.0,0.00011164,2]
[348318777,1736443859928,-500.0,0.00011164,2]
[348318778,1736443859939,-500.0,0.00011164,2]
[348318779,1736443859948,-500.0,0.00011164,2]
[348318780,1736443859958,-197.44589731,0.00011164,2]
[348318781,1736443859969,-500.0,0.00011164,2]
[348318782,1736443859981,-388.95350364,0.00011164,2]
[348318783,1736443859991,-1557.7,0.00011164,2]
[348318784,1736443860000,-500.0,0.00011164,2]
[348318785,1736443860010,-500.0,0.00011164,2]
[348318786,1736443860020,-500.0,0.00011164,2]
[348318787,1736443860029,-500.0,0.00011164,2]
[348318788,1736443860039,-500.0,0.00011164,2]
[348318789,1736443860050,-500.0,0.00011164,2]
[348318790,1736443860060,-500.0,0.00011164,2]
[348318791,1736443860070,-500.0,0.00011164,2]
[348318792,1736443860079,-500.0,0.00011164,2]
[348318793,1736443860089,-1891.11,0.00011164,2]
[348318794,1736443860099,-500.0,0.00011164,2]
[348318795,1736443860109,-500.0,0.00011164,2]
[348318796,1736443860120,-500.0,0.00011164,2]
[348318797,1736443860132,-539.34,0.00011164,2]
[348318798,1736443860143,-500.0,0.00011164,2]
[348318799,1736443860152,-500.0,0.00011164,2]
[348318800,1736443860162,-574.92,0.00011164,2]
[348318801,1736443860172,-1718.69,0.00011164,2]
[348318802,1736443860181,-500.0,0.00011164,2]
[348318803,1736443860191,-1045.02,0.00011164,2]
[348318804,1736443860204,-500.0,0.00011164,2]
[348318805,1736443860214,-500.0,0.00011164,2]
[348318806,1736443860225,-500.0,0.00011164,2]
[348318807,1736443860235,-500.0,0.00011164,2]
[348318808,1736443860245,-169.25,0.00011164,2]
[348318809,1736443860255,-665.13,0.00011164,2]
[348318810,1736443860265,-500.0,0.00011164,2]
[348318811,1736443860275,-500.0,0.00011164,2]
[348318812,1736443860284,-545.39,0.00011164,2]
[348318813,1736443860294,-625.7,0.00011164,2]
[348318814,1736443860304,-500.0,0.00011164,2]
[348318815,1736443860314,-500.0,0.00011164,2]
[348318816,1736443860324,-500.0,0.00011164,2]
[348318817,1736443860334,-500.0,0.00011164,2]
[348318818,1736443860343,-500.0,0.00011164,2]
[348318819,1736443860353,-500.0,0.00011164,2]
[348318820,1736443860363,-920.22,0.00011164,2]
[348318821,1736443860372,-588.3,0.00011164,2]
[348318822,1736443860382,-500.0,0.00011164,2]
[348318823,1736443860391,-505.56,0.00011164,2]
[348318824,1736443860401,-500.0,0.00011164,2]
[348318825,1736443860411,-500.0,0.00011164,2]
[348318826,1736443860421,-628.31,0.00011164,2]
[348318827,1736443860431,-500.0,0.00011164,2]
[348318828,1736443860440,-500.0,0.00011164,2]
[348318829,1736443860450,-500.0,0.00011164,2]
[348318830,1736443860460,-500.0,0.00011164,2]
[348318831,1736443860470,-492.24,0.00011164,2]
[348318832,1736443860480,-500.0,0.00011164,2]
[348318833,1736443860491,-500.0,0.00011164,2]
[348318834,1736443860500,-500.0,0.00011164,2]
[348318835,1736443860510,-565.02,0.00011164,2]
[348318836,1736443860520,-3968.46,0.00011164,2]
[348318837,1736443860530,-500.0,0.00011164,2]
[348318838,1736443860540,-912.12,0.00011164,2]
[348318839,1736443860552,-500.0,0.00011164,2]
[348318840,1736443860563,-500.0,0.00011164,2]
[348318841,1736443860572,-500.0,0.00011164,2]
[348318842,1736443860583,-500.0,0.00011164,2]
[348318843,1736443860593,-500.0,0.00011164,2]
[348318844,1736443860603,-500.0,0.00011164,2]
[348318845,1736443860613,-500.0,0.00011164,2]
[348318846,1736443860622,-607.22,0.00011164,2]
[348318847,1736443860632,-500.0,0.00011164,2]
[348318848,1736443860642,-974.62,0.00011164,2]
[348318849,1736443860652,-517.83,0.00011164,2]
[348318850,1736443860662,-522.25,0.00011164,2]
[348318851,1736443860672,-2345.4,0.00011164,2]
[348318852,1736443860683,-500.0,0.00011164,2]
[348318853,1736443860693,-530.63,0.00011164,2]
[348318854,1736443860703,-500.0,0.00011164,2]
[348318855,1736443860712,-500.0,0.00011164,2]
[348318856,1736443860722,-954.96,0.00011164,2]
[348318857,1736443860731,-500.0,0.00011164,2]
[348318858,1736443860743,-679.54,0.00011164,2]
[348318859,1736443860754,-532.67,0.00011164,2]
[348318860,1736443860764,-500.0,0.00011164,2]
[348318861,1736443860774,-607.18,0.00011164,2]
[348318862,1736443860785,-756.22,0.00011164,2]
[348318863,1736443860795,-500.0,0.00011164,2]
[348318864,1736443860807,-500.0,0.00011164,2]
[348318865,1736443860817,-500.0,0.00011164,2]
[348318866,1736443860827,-620.44,0.00011164,2]
[348318867,1736443860837,-540.87,0.00011164,2]
[348318868,1736443860847,-564.83,0.00011164,2]
[348318869,1736443860858,-393.5132333,0.00011164,2]
[348318870,1736443860870,-674.56,0.00011164,2]
[348318871,1736443860880,-1525.01,0.00011164,2]
[348318872,1736443860890,-500.0,0.00011164,2]
[348318873,1736443860900,-500.0,0.00011164,2]
[348318874,1736443860910,-601.46,0.00011164,2]
[348318875,1736443861090,-500.0,0.00011164,2]
[348318876,1736443861101,-561.3,0.00011164,2]
[348318877,1736443861111,-500.0,0.00011164,2]
[348318878,1736443861123,-510.74,0.00011164,2]
[348318879,1736443861136,-500.0,0.00011164,2]
[348318880,1736443861145,-500.0,0.00011164,2]
[348318881,1736443861155,-597.46,0.00011164,2]
[348318882,1736443861167,-500.0,0.00011164,2]
[348318883,1736443861176,-521.05,0.00011164,2]
[348318884,1736443861186,-809.13,0.00011164,2]
[348318885,1736443861195,-500.0,0.00011164,2]
[348318886,1736443861204,-602.14,0.00011164,2]
[348318887,1736443861214,-500.0,0.00011164,2]
[348318888,1736443861223,-500.0,0.00011164,2]
[348318889,1736443861233,-500.0,0.00011164,2]
[348318890,1736443861242,-535.04,0.00011164,2]
[348318891,1736443861251,-500.0,0.00011164,2]
[348318892,1736443861260,-500.0,0.00011164,2]
[348318893,1736443861269,-500.0,0.00011164,2]
[348318894,1736443861278,-500.0,0.00011164,2]
[348318895,1736443861288,-1835.84,0.00011164,2]
[348318896,1736443861298,-500.0,0.00011164,2]
[348318897,1736443861308,-500.0,0.00011164,2]
[348318898,1736443861318,-500.0,0.00011164,2]
[348318899,1736443861328,-756.03,0.00011164,2]
[348318900,1736443861338,-500.0,0.00011164,2]
[348318901,1736443861347,-500.0,0.00011164,2]
[348318902,1736443861357,-500.0,0.00011164,2]
[348318903,1736443861367,-500.0,0.00011164,2]
[348318904,1736443861376,-500.0,0.00011164,2]
[348318905,1736443861386,-500.0,0.00011164,2]
[348318906,1736443861395,-500.0,0.00011164,2]
[348318907,1736443861404,-747.58,0.00011164,2]
[348318908,1736443861414,-569.94,0.00011164,2]
[348318909,1736443861424,-500.0,0.00011164,2]
[348318910,1736443861434,-890.19,0.00011164,2]
[348318911,1736443861443,-896.0,0.00011164,2]
[348318912,1736443861452,-500.0,0.00011164,2]
[348318913,1736443861462,-500.0,0.00011164,2]
[348318914,1736443861472,-500.0,0.00011164,2]
[348318915,1736443861481,-500.0,0.00011164,2]
[348318916,1736443861491,-500.0,0.00011164,2]
[348318917,1736443861501,-512.51,0.00011164,2]
[348318918,1736443861511,-500.0,0.00011164,2]
[348318919,1736443861522,-500.0,0.00011164,2]
[348318920,1736443861531,-500.0,0.00011164,2]
[348318921,1736443861541,-598.04,0.00011164,2]
[348318922,1736443861552,-500.0,0.00011164,2]
[348318923,1736443861561,-500.0,0.00011164,2]
[348318924,1736443861571,-500.0,0.00011164,2]
[348318925,1736443861580,-500.0,0.00011164,2]
[348318926,1736443861589,-500.0,0.00011164,2]
[348318927,1736443861600,-683.94,0.00011164,2]
[348318928,1736443861611,-608.37,0.00011164,2]
[348318929,1736443861621,-500.0,0.00011164,2]
[348318930,1736443861633,-500.0,0.00011164,2]
[348318931,1736443861642,-631.08,0.00011164,2]
[348318932,1736443861653,-500.0,0.00011164,2]
[348318933,1736443861665,-1014.23,0.00011164,2]
[348318934,1736443861676,-500.0,0.00011164,2]
[348318935,1736443861687,-500.0,0.00011164,2]
[348318936,1736443861696,-500.0,0.00011164,2]
[348318937,1736443861705,-996.35,0.00011164,2]